[Event "*** Titled Tuesday Blitz"]
[Site "Chess.com"]
[Date "2019.05.07"]
[Round "8"]
[White "nitpicker"]
[Black "Al_Shima"]
[Result "1-0"]
[WhiteElo "2247"]
[BlackElo "2404"]
[TimeControl "180+2"]
[EndTime "14:57:49 PDT"]
[Termination "nitpicker won by checkmate"]

1. d4 {[%clk 0:03:01.9]} 1... Nf6 {[%clk 0:00:46.9]} 2. c4 {[%clk 0:03:01]} 2...
Nc6 {[%clk 0:00:47.3]} 3. Nf3 {[%clk 0:03:00.3]} 3... e6 {[%clk 0:00:47.2]} 4.
a3 {[%clk 0:03:01.3]} 4... d5 {[%clk 0:00:46.7]} 5. Nc3 {[%clk 0:03:00.6]} 5...
dxc4 {[%clk 0:00:47.5]} 6. e4 {[%clk 0:03:00.8]} 6... Be7 {[%clk 0:00:43.8]} 7.
Bxc4 {[%clk 0:03:00.1]} 7... O-O {[%clk 0:00:44.5]} 8. O-O {[%clk 0:03:00.7]}
8... b6 {[%clk 0:00:43.4]} 9. h3 {[%clk 0:02:49.2]} 9... Bb7 {[%clk 0:00:44]}
10. Re1 {[%clk 0:02:40.2]} 10... Qc8 {[%clk 0:00:44.6]} 11. e5 {[%clk
0:02:30.9]} 11... Nd7 {[%clk 0:00:40.3]} 12. Bd3 {[%clk 0:02:28.5]} 12... Rd8
{[%clk 0:00:40.4]} 13. Bg5 {[%clk 0:02:20.6]} 13... Nf8 {[%clk 0:00:36.9]} 14.
Be3 {[%clk 0:01:38.6]} 14... Ng6 {[%clk 0:00:34.4]} 15. Qc2 {[%clk 0:01:36.8]}
15... Bf8 {[%clk 0:00:34.9]} 16. Rad1 {[%clk 0:01:36.9]} 16... Nce7 {[%clk
0:00:25.8]} 17. Be4 {[%clk 0:01:28.8]} 17... Nd5 {[%clk 0:00:20.2]} 18. Bc1
{[%clk 0:01:22.6]} 18... Be7 {[%clk 0:00:20.6]} 19. g3 {[%clk 0:01:20.3]} 19...
c6 {[%clk 0:00:19.5]} 20. h4 {[%clk 0:01:20.9]} 20... Nf8 {[%clk 0:00:19.7]} 21.
h5 {[%clk 0:01:18.7]} 21... h6 {[%clk 0:00:20.5]} 22. Qe2 {[%clk 0:01:11.4]}
22... Ba6 {[%clk 0:00:20.7]} 23. Qc2 {[%clk 0:01:12.6]} 23... Qb7 {[%clk
0:00:21.1]} 24. g4 {[%clk 0:01:08.6]} 24... Rac8 {[%clk 0:00:20.6]} 25. g5
{[%clk 0:01:09.2]} 25... hxg5 {[%clk 0:00:21.2]} 26. Nxg5 {[%clk 0:01:06.8]}
26... Bxg5 {[%clk 0:00:20.7]} 27. Bxg5 {[%clk 0:01:06.6]} 27... Rd7 {[%clk
0:00:21.5]} 28. h6 {[%clk 0:01:07.7]} 28... g6 {[%clk 0:00:21.6]} 29. Bd3 {[%clk
0:00:55.2]} 29... Bxd3 {[%clk 0:00:21.8]} 30. Rxd3 {[%clk 0:00:53]} 30... Nh7
{[%clk 0:00:21.2]} 31. Bc1 {[%clk 0:00:51.2]} 31... c5 {[%clk 0:00:21.5]} 32.
Ne4 {[%clk 0:00:46.5]} 32... cxd4 {[%clk 0:00:21.2]} 33. Qd1 {[%clk 0:00:46.1]}
33... Ne7 {[%clk 0:00:20.2]} 34. Nd6 {[%clk 0:00:39.9]} 34... Rxd6 {[%clk
0:00:21.3]} 35. exd6 {[%clk 0:00:40.5]} 35... Nf5 {[%clk 0:00:23.2]} 36. Bf4
{[%clk 0:00:35.9]} 36... Rd8 {[%clk 0:00:22.2]} 37. Be5 {[%clk 0:00:36.7]} 37...
f6 {[%clk 0:00:22.5]} 38. Bxd4 {[%clk 0:00:37.7]} 38... Rxd6 {[%clk 0:00:22.2]}
39. Bc3 {[%clk 0:00:37.7]} 39... Rxd3 {[%clk 0:00:19.8]} 40. Qxd3 {[%clk
0:00:38.7]} 40... Nh4 {[%clk 0:00:20.9]} 41. Qe4 {[%clk 0:00:31]} 41... Nf3+
{[%clk 0:00:20.9]} 42. Kf1 {[%clk 0:00:28.3]} 42... Qa6+ {[%clk 0:00:17.4]} 43.
Re2 {[%clk 0:00:26.5]} 43... Nh2+ {[%clk 0:00:14.6]} 44. Kg2 {[%clk 0:00:26.3]}
44... Qb5 {[%clk 0:00:06.8]} 45. Kxh2 {[%clk 0:00:23.9]} 45... Nf8 {[%clk
0:00:07.1]} 46. Bxf6 {[%clk 0:00:22.2]} 46... Qh5+ {[%clk 0:00:06.8]} 47. Kg2
{[%clk 0:00:20.6]} 47... Qxh6 {[%clk 0:00:08.2]} 48. Qe3 {[%clk 0:00:19.1]}
48... Qh5 {[%clk 0:00:09.1]} 49. Bc3 {[%clk 0:00:18.9]} 49... Qg4+ {[%clk
0:00:09.5]} 50. Kf1 {[%clk 0:00:19.2]} 50... Qc4 {[%clk 0:00:10.3]} 51. Qd4
{[%clk 0:00:17.3]} 51... Qxd4 {[%clk 0:00:07.7]} 52. Bxd4 {[%clk 0:00:17.9]}
52... Kf7 {[%clk 0:00:09.6]} 53. Be5 {[%clk 0:00:18.4]} 53... Nd7 {[%clk
0:00:10.7]} 54. Re3 {[%clk 0:00:19.4]} 54... Nc5 {[%clk 0:00:11.6]} 55. Ke2
{[%clk 0:00:19.8]} 55... Ke7 {[%clk 0:00:12.4]} 56. b4 {[%clk 0:00:20]} 56...
Nd7 {[%clk 0:00:13.2]} 57. Bc7 {[%clk 0:00:19.5]} 57... Kf6 {[%clk 0:00:12.5]}
58. Kf3 {[%clk 0:00:19.3]} 58... Kf5 {[%clk 0:00:12.8]} 59. Kg3 {[%clk
0:00:17.9]} 59... e5 {[%clk 0:00:13.7]} 60. Rf3+ {[%clk 0:00:17.9]} 60... Ke6
{[%clk 0:00:14.7]} 61. Re3 {[%clk 0:00:17.1]} 61... Kf5 {[%clk 0:00:15.4]} 62.
Rc3 {[%clk 0:00:17.8]} 62... Ke6 {[%clk 0:00:16.1]} 63. Rc6+ {[%clk 0:00:17.8]}
63... Kf7 {[%clk 0:00:17.2]} 64. Kf3 {[%clk 0:00:16.8]} 64... Nf8 {[%clk
0:00:16.9]} 65. Ke4 {[%clk 0:00:16.9]} 65... Ne6 {[%clk 0:00:16.3]} 66. Kxe5
{[%clk 0:00:17.6]} 66... Ng5 {[%clk 0:00:17]} 67. Bd6 {[%clk 0:00:16.6]} 67...
Nf3+ {[%clk 0:00:17.4]} 68. Kf4 {[%clk 0:00:17.1]} 68... Nd4 {[%clk 0:00:18.4]}
69. Rc7+ {[%clk 0:00:17.4]} 69... Ke6 {[%clk 0:00:19.7]} 70. Bf8 {[%clk
0:00:17.5]} 70... Nb5 {[%clk 0:00:20.1]} 71. Rg7 {[%clk 0:00:17.2]} 71... Kf6
{[%clk 0:00:21.1]} 72. Rb7 {[%clk 0:00:17.6]} 72... Ke6 {[%clk 0:00:19.6]} 73.
a4 {[%clk 0:00:17.8]} 73... Nd4 {[%clk 0:00:19.7]} 74. Rxa7 {[%clk 0:00:16.5]}
74... Nc6 {[%clk 0:00:20.6]} 75. Ra6 {[%clk 0:00:16.1]} 75... Kd5 {[%clk
0:00:21.4]} 76. Rxb6 {[%clk 0:00:16.1]} 76... g5+ {[%clk 0:00:22.4]} 77. Kxg5
{[%clk 0:00:16.3]} 77... Ne5 {[%clk 0:00:23.6]} 78. a5 {[%clk 0:00:15.8]} 78...
Nc4 {[%clk 0:00:23.9]} 79. Rb7 {[%clk 0:00:15.1]} 79... Kc6 {[%clk 0:00:24.7]}
80. Rh7 {[%clk 0:00:12.2]} 80... Ne5 {[%clk 0:00:25.3]} 81. Bc5 {[%clk
0:00:11.4]} 81... Kb5 {[%clk 0:00:26.1]} 82. Kf5 {[%clk 0:00:12.5]} 82... Nc4
{[%clk 0:00:23.3]} 83. f4 {[%clk 0:00:12.7]} 83... Ka6 {[%clk 0:00:20.9]} 84.
Ke6 {[%clk 0:00:13.5]} 84... Nd2 {[%clk 0:00:20.8]} 85. f5 {[%clk 0:00:14.5]}
85... Ne4 {[%clk 0:00:21.5]} 86. f6 {[%clk 0:00:15.6]} 86... Ng5+ {[%clk
0:00:22.5]} 87. Kf5 {[%clk 0:00:14.8]} 87... Nxh7 {[%clk 0:00:24.4]} 88. f7
{[%clk 0:00:15.2]} 88... Kb7 {[%clk 0:00:24.3]} 89. Kg6 {[%clk 0:00:16.5]} 89...
Nf8+ {[%clk 0:00:25]} 90. Bxf8 {[%clk 0:00:16.7]} 90... Ka6 {[%clk 0:00:26.9]}
91. Bc5 {[%clk 0:00:18]} 91... Kb5 {[%clk 0:00:28.4]} 92. f8=Q {[%clk
0:00:19.4]} 92... Ka6 {[%clk 0:00:29.9]} 93. Qa8+ {[%clk 0:00:18.6]} 93... Kb5
{[%clk 0:00:30.8]} 94. Qb7+ {[%clk 0:00:20]} 94... Ka4 {[%clk 0:00:32.1]} 95. a6
{[%clk 0:00:21.4]} 95... Kb3 {[%clk 0:00:33.4]} 96. a7 {[%clk 0:00:23]} 96...
Kc4 {[%clk 0:00:35.3]} 97. a8=Q {[%clk 0:00:23.4]} 97... Kd3 {[%clk 0:00:37.2]}
98. b5 {[%clk 0:00:23.8]} 98... Kc4 {[%clk 0:00:39.1]} 99. Qc6 {[%clk
0:00:24.6]} 99... Kb3 {[%clk 0:00:40.5]} 100. b6 {[%clk 0:00:25.1]} 100... Kc4
{[%clk 0:00:41.5]} 101. b7 {[%clk 0:00:26.1]} 101... Kd3 {[%clk 0:00:43.1]} 102.
b8=Q {[%clk 0:00:26.1]} 102... Ke2 {[%clk 0:00:44.9]} 103. Bf8 {[%clk
0:00:26.2]} 103... Kd1 {[%clk 0:00:46.8]} 104. Qcc8 {[%clk 0:00:27.2]} 104...
Ke2 {[%clk 0:00:47.9]} 105. Kf5 {[%clk 0:00:28.2]} 105... Ke3 {[%clk 0:00:49.8]}
106. Ke5 {[%clk 0:00:28.5]} 106... Kd3 {[%clk 0:00:50.8]} 107. Qb3+ {[%clk
0:00:28.3]} 107... Ke2 {[%clk 0:00:51.4]} 108. Qcc2+ {[%clk 0:00:28.8]} 108...
Kf1 {[%clk 0:00:52]} 109. Qd8 {[%clk 0:00:28]} 109... Ke1 {[%clk 0:00:52.6]}
110. Qdd1# {[%clk 0:00:28.4]} 1-0

[Event "*** Titled Tuesday Blitz"]
[Site "Chess.com"]
[Date "2019.05.07"]
[Round "9"]
[White "Al_Shima"]
[Black "Casablanca"]
[Result "1-0"]
[WhiteElo "2407"]
[BlackElo "2143"]
[TimeControl "180+2"]
[EndTime "15:00:07 PDT"]
[Termination "Al_Shima won by checkmate"]

1. b3 {[%clk 0:03:01.9]} 1... b6 {[%clk 0:02:58.7]} 2. Bb2 {[%clk 0:03:03]} 2...
Bb7 {[%clk 0:03:00.6]} 3. e3 {[%clk 0:03:03.5]} 3... e6 {[%clk 0:03:01.4]} 4.
Nf3 {[%clk 0:03:04.4]} 4... Nf6 {[%clk 0:03:01.6]} 5. Be2 {[%clk 0:03:05.9]}
5... Be7 {[%clk 0:03:02.7]} 6. O-O {[%clk 0:03:07.8]} 6... O-O {[%clk 0:03:04]}
7. c4 {[%clk 0:03:09.7]} 7... d5 {[%clk 0:03:02.1]} 8. Nc3 {[%clk 0:03:11.6]}
8... c5 {[%clk 0:03:01.4]} 9. cxd5 {[%clk 0:03:12.5]} 9... exd5 {[%clk
0:03:02.2]} 10. d4 {[%clk 0:03:13.3]} 10... Nc6 {[%clk 0:02:58.4]} 11. Rc1
{[%clk 0:03:13.8]} 11... cxd4 {[%clk 0:02:58.2]} 12. Nxd4 {[%clk 0:03:14.6]}
12... Nxd4 {[%clk 0:02:59.7]} 13. Qxd4 {[%clk 0:03:15.4]} 13... Bc5 {[%clk
0:03:01.2]} 14. Qh4 {[%clk 0:03:15.8]} 14... d4 {[%clk 0:03:01.7]} 15. Na4
{[%clk 0:03:14.7]} 15... dxe3 {[%clk 0:02:59.7]} 16. Nxc5 {[%clk 0:03:15.4]}
16... exf2+ {[%clk 0:03:00.1]} 17. Rxf2 {[%clk 0:03:16.4]} 17... bxc5 {[%clk
0:03:01.8]} 18. Rxf6 {[%clk 0:03:15.4]} 18... gxf6 {[%clk 0:03:03.4]} 19. Bxf6
{[%clk 0:03:15.9]} 19... Qd2 {[%clk 0:02:24.7]} 20. Qg3+ {[%clk 0:03:13.6]}
20... Qg5 {[%clk 0:02:22.7]} 21. Qxg5# {[%clk 0:03:14.4]} 1-0

[Event "*** Titled Tuesday Blitz"]
[Site "Chess.com"]
[Date "2019.05.07"]
[Round "9"]
[White "Blitzstream"]
[Black "Jahonas"]
[Result "1-0"]
[WhiteElo "2580"]
[BlackElo "2382"]
[TimeControl "180+2"]
[EndTime "15:02:20 PDT"]
[Termination "Blitzstream won by resignation"]

1. g4 {[%clk 0:03:01.9]} 1... c6 {[%clk 0:02:56]} 2. Bg2 {[%clk 0:02:56.3]} 2...
d5 {[%clk 0:02:57.1]} 3. g5 {[%clk 0:02:57.6]} 3... h5 {[%clk 0:02:56.6]} 4. d4
{[%clk 0:02:54.9]} 4... g6 {[%clk 0:02:57.2]} 5. Bf4 {[%clk 0:02:55.1]} 5... Bg7
{[%clk 0:02:57.6]} 6. e3 {[%clk 0:02:54.6]} 6... Bf5 {[%clk 0:02:56.7]} 7. c4
{[%clk 0:02:55]} 7... Bxb1 {[%clk 0:02:48.2]} 8. Rxb1 {[%clk 0:02:55.1]} 8...
Qa5+ {[%clk 0:02:48.2]} 9. b4 {[%clk 0:02:50.9]} 9... Qxa2 {[%clk 0:02:43.9]}
10. cxd5 {[%clk 0:02:49.8]} 10... cxd5 {[%clk 0:02:34.3]} 11. Ne2 {[%clk
0:02:50.6]} 11... e6 {[%clk 0:02:29.2]} 12. Ra1 {[%clk 0:02:28.1]} 12... Qc4
{[%clk 0:02:27.2]} 13. O-O {[%clk 0:02:15.7]} 13... Nc6 {[%clk 0:02:26.7]} 14.
b5 {[%clk 0:01:52.5]} 14... Qxb5 {[%clk 0:02:18]} 15. Qd2 {[%clk 0:01:48.4]}
15... Nge7 {[%clk 0:02:03.3]} 16. Rfb1 {[%clk 0:01:47.4]} 16... Qc4 {[%clk
0:02:00.3]} 17. Nc3 {[%clk 0:01:38.7]} 17... O-O {[%clk 0:01:47.3]} 18. Bf1
{[%clk 0:01:38.1]} 1-0

[Event "*** Titled Tuesday Blitz"]
[Site "Chess.com"]
[Date "2019.05.07"]
[Round "9"]
[White "Ind1anStar"]
[Black "Zq1"]
[Result "0-1"]
[WhiteElo "2455"]
[BlackElo "2495"]
[TimeControl "180+2"]
[EndTime "15:02:50 PDT"]
[Termination "Zq1 won on time"]

1. d4 {[%clk 0:03:01.9]} 1... Nf6 {[%clk 0:03:00.3]} 2. c4 {[%clk 0:03:01.4]}
2... a6 {[%clk 0:03:01.1]} 3. g3 {[%clk 0:03:01.3]} 3... c5 {[%clk 0:03:02]} 4.
Bg2 {[%clk 0:03:00.5]} 4... cxd4 {[%clk 0:03:02.8]} 5. Qxd4 {[%clk 0:02:59.7]}
5... Nc6 {[%clk 0:03:03.2]} 6. Qd1 {[%clk 0:02:59.3]} 6... g6 {[%clk 0:03:02.7]}
7. Nc3 {[%clk 0:03:00.8]} 7... Bg7 {[%clk 0:03:03.7]} 8. e4 {[%clk 0:03:02]}
8... O-O {[%clk 0:03:04]} 9. Nge2 {[%clk 0:03:02.9]} 9... Rb8 {[%clk 0:03:04.3]}
10. O-O {[%clk 0:03:01.5]} 10... b5 {[%clk 0:03:04.2]} 11. cxb5 {[%clk
0:03:02.4]} 11... axb5 {[%clk 0:03:04.9]} 12. Be3 {[%clk 0:03:02]} 12... b4
{[%clk 0:03:04.6]} 13. Nd5 {[%clk 0:03:03]} 13... d6 {[%clk 0:03:05]} 14. Nd4
{[%clk 0:03:00.4]} 14... Bb7 {[%clk 0:02:58.5]} 15. Rc1 {[%clk 0:02:53.8]} 15...
Nxd4 {[%clk 0:02:49]} 16. Bxd4 {[%clk 0:02:55.7]} 16... Bxd5 {[%clk 0:02:49.9]}
17. exd5 {[%clk 0:02:53.7]} 17... Qa5 {[%clk 0:02:50.4]} 18. Qb3 {[%clk
0:02:51.4]} 18... Rfc8 {[%clk 0:02:45.2]} 0-1

[Event "*** Titled Tuesday Blitz"]
[Site "Chess.com"]
[Date "2019.05.07"]
[Round "9"]
[White "ZuchBolt"]
[Black "AliKa2810"]
[Result "0-1"]
[WhiteElo "2264"]
[BlackElo "2490"]
[TimeControl "180+2"]
[EndTime "15:02:50 PDT"]
[Termination "AliKa2810 won by resignation"]

1. d4 {[%clk 0:03:01.9]} 1... Nf6 {[%clk 0:03:00.6]} 2. c4 {[%clk 0:03:02.1]}
2... g6 {[%clk 0:03:01.6]} 3. Nc3 {[%clk 0:03:02.6]} 3... Bg7 {[%clk 0:03:02.9]}
4. e4 {[%clk 0:03:03.9]} 4... d6 {[%clk 0:03:03.6]} 5. Be2 {[%clk 0:03:05.2]}
5... O-O {[%clk 0:03:04]} 6. Bg5 {[%clk 0:03:06.6]} 6... h6 {[%clk 0:02:50.8]}
7. Be3 {[%clk 0:03:06.3]} 7... e5 {[%clk 0:02:52.4]} 8. Nf3 {[%clk 0:02:44.6]}
8... Nc6 {[%clk 0:02:45.5]} 9. d5 {[%clk 0:02:44.3]} 9... Ne7 {[%clk 0:02:46]}
10. h3 {[%clk 0:02:32.6]} 10... Nh5 {[%clk 0:02:42]} 11. Qd2 {[%clk 0:02:27.6]}
11... Nf4 {[%clk 0:02:41.9]} 12. Bxf4 {[%clk 0:02:24.6]} 12... exf4 {[%clk
0:02:43]} 13. Qxf4 {[%clk 0:02:26.5]} 13... g5 {[%clk 0:02:43.6]} 14. Qe3 {[%clk
0:02:25.1]} 14... f5 {[%clk 0:02:32.4]} 15. exf5 {[%clk 0:02:25.8]} 15... Bxf5
{[%clk 0:02:07.5]} 16. O-O {[%clk 0:02:26]} 16... Ng6 {[%clk 0:02:05.7]} 17. Bd3
{[%clk 0:02:22.1]} 17... Bxd3 {[%clk 0:01:55.6]} 18. Qxd3 {[%clk 0:02:22.1]}
18... Nf4 {[%clk 0:01:57.2]} 19. Qd2 {[%clk 0:02:23]} 19... Nxh3+ {[%clk
0:01:54.9]} 20. Kh2 {[%clk 0:02:18.2]} 20... Nf4 {[%clk 0:01:55.1]} 21. Nd4
{[%clk 0:02:19]} 21... Qf6 {[%clk 0:01:46.8]} 22. Rad1 {[%clk 0:02:15.3]} 22...
Qg6 {[%clk 0:01:47.4]} 23. g3 {[%clk 0:02:12.4]} 23... Qh5+ {[%clk 0:01:46.6]}
24. Kg1 {[%clk 0:02:13.2]} 24... Rae8 {[%clk 0:01:21.8]} 25. gxf4 {[%clk
0:02:09.7]} 25... Bxd4 {[%clk 0:01:21.4]} 26. Qxd4 {[%clk 0:02:06.7]} 26... Rxf4
{[%clk 0:01:21.7]} 0-1

[Event "*** Titled Tuesday Blitz"]
[Site "Chess.com"]
[Date "2019.05.07"]
[Round "9"]
[White "H3nriqueTV"]
[Black "aa175"]
[Result "1-0"]
[WhiteElo "2009"]
[BlackElo "1957"]
[TimeControl "180+2"]
[EndTime "15:02:57 PDT"]
[Termination "H3nriqueTV won by resignation"]

1. e4 {[%clk 0:03:01.9]} 1... e5 {[%clk 0:02:48.5]} 2. Nf3 {[%clk 0:03:02.4]}
2... f5 {[%clk 0:02:49.3]} 3. d3 {[%clk 0:02:59.7]} 3... Nf6 {[%clk 0:02:49.5]}
4. exf5 {[%clk 0:03:00.6]} 4... d6 {[%clk 0:02:50.1]} 5. g3 {[%clk 0:03:01.2]}
5... Bxf5 {[%clk 0:02:50.9]} 6. Bg2 {[%clk 0:03:02.3]} 6... Nc6 {[%clk
0:02:51.9]} 7. Nc3 {[%clk 0:03:03.1]} 7... h5 {[%clk 0:02:52.4]} 8. Bg5 {[%clk
0:03:03.5]} 8... Be7 {[%clk 0:02:49.2]} 9. Nh4 {[%clk 0:03:04.1]} 9... Bg4
{[%clk 0:02:47.7]} 10. Qd2 {[%clk 0:03:02.8]} 10... Kf7 {[%clk 0:02:42.8]} 11.
h3 {[%clk 0:02:54.8]} 11... Be6 {[%clk 0:02:35.5]} 12. O-O-O {[%clk 0:02:50.6]}
12... d5 {[%clk 0:02:22.9]} 13. f4 {[%clk 0:02:44.8]} 13... d4 {[%clk
0:02:20.2]} 14. Ne4 {[%clk 0:02:43.1]} 14... Bxa2 {[%clk 0:02:16.3]} 15. Bxf6
{[%clk 0:02:39.7]} 15... gxf6 {[%clk 0:02:14.1]} 16. fxe5 {[%clk 0:02:41]} 16...
Nxe5 {[%clk 0:02:08]} 17. Rhf1 {[%clk 0:02:35.8]} 17... Kg8 {[%clk 0:01:58]} 18.
Ng6 {[%clk 0:02:31.3]} 18... Rh7 {[%clk 0:01:52.6]} 19. Nxe7+ {[%clk 0:02:31.3]}
19... Rxe7 {[%clk 0:01:53.5]} 20. Nxf6+ {[%clk 0:02:29.7]} 20... Kg7 {[%clk
0:01:37.8]} 21. Qg5+ {[%clk 0:02:26.6]} 21... Ng6 {[%clk 0:01:34.5]} 22. Nxh5+
{[%clk 0:02:27.4]} 22... Kh7 {[%clk 0:01:33.1]} 23. Nf6+ {[%clk 0:02:25.3]}
23... Kg7 {[%clk 0:01:31.8]} 24. Be4 {[%clk 0:02:25.1]} 24... Bf7 {[%clk
0:01:07.3]} 25. Nh5+ {[%clk 0:02:22.5]} 25... Kh7 {[%clk 0:00:57.2]} 26. Rxf7+
{[%clk 0:02:14.6]} 1-0

[Event "*** Titled Tuesday Blitz"]
[Site "Chess.com"]
[Date "2019.05.07"]
[Round "9"]
[White "GHANDEEVAM2003"]
[Black "StephenDedalus83"]
[Result "1-0"]
[WhiteElo "2900"]
[BlackElo "2802"]
[TimeControl "180+2"]
[EndTime "15:03:42 PDT"]
[Termination "GHANDEEVAM2003 won by resignation"]

1. e4 {[%clk 0:03:01.9]} 1... c5 {[%clk 0:03:00.3]} 2. Nf3 {[%clk 0:03:01.2]}
2... Nc6 {[%clk 0:03:01.1]} 3. d4 {[%clk 0:03:02]} 3... cxd4 {[%clk 0:03:03]} 4.
Nxd4 {[%clk 0:03:03.9]} 4... Qc7 {[%clk 0:03:04.5]} 5. Nc3 {[%clk 0:03:01.9]}
5... e6 {[%clk 0:03:05.4]} 6. Be2 {[%clk 0:03:01.3]} 6... a6 {[%clk 0:03:05.9]}
7. O-O {[%clk 0:03:02.3]} 7... Nf6 {[%clk 0:03:06.9]} 8. Be3 {[%clk 0:03:02.6]}
8... Be7 {[%clk 0:03:06.5]} 9. f4 {[%clk 0:03:03]} 9... d6 {[%clk 0:03:07.7]}
10. Qe1 {[%clk 0:02:57.2]} 10... O-O {[%clk 0:03:03.4]} 11. Kh1 {[%clk
0:02:52.7]} 11... Na5 {[%clk 0:03:03.7]} 12. Rd1 {[%clk 0:02:46.2]} 12... Nc4
{[%clk 0:03:03.7]} 13. Bc1 {[%clk 0:02:45.1]} 13... b5 {[%clk 0:03:05]} 14. f5
{[%clk 0:02:34.2]} 14... e5 {[%clk 0:03:02.6]} 15. Nf3 {[%clk 0:02:34.5]} 15...
h6 {[%clk 0:02:53.8]} 16. Bd3 {[%clk 0:01:58.5]} 16... Bb7 {[%clk 0:02:53.1]}
17. a3 {[%clk 0:01:51.7]} 17... Rac8 {[%clk 0:02:53.4]} 18. Na2 {[%clk
0:01:45.4]} 18... d5 {[%clk 0:02:49.8]} 19. exd5 {[%clk 0:01:40.9]} 19... Bxd5
{[%clk 0:02:49.2]} 20. Nc3 {[%clk 0:01:37.1]} 20... Bxf3 {[%clk 0:01:56.9]} 21.
gxf3 {[%clk 0:01:27.3]} 21... Nxa3 {[%clk 0:01:52.5]} 22. Rg1 {[%clk 0:01:24.5]}
22... Kh7 {[%clk 0:01:43.4]} 23. Qh4 {[%clk 0:00:58.8]} 23... Nc4 {[%clk
0:01:39.2]} 24. Rxg7+ {[%clk 0:00:56.6]} 1-0

[Event "*** Titled Tuesday Blitz"]
[Site "Chess.com"]
[Date "2019.05.07"]
[Round "9"]
[White "NM2019"]
[Black "GMKrikor"]
[Result "0-1"]
[WhiteElo "2147"]
[BlackElo "2724"]
[TimeControl "180+2"]
[EndTime "15:03:44 PDT"]
[Termination "GMKrikor won by checkmate"]

1. c4 {[%clk 0:03:01.5]} 1... c5 {[%clk 0:02:58.9]} 2. Nf3 {[%clk 0:03:02.5]}
2... Nc6 {[%clk 0:02:59.7]} 3. g3 {[%clk 0:03:04.1]} 3... g6 {[%clk 0:03:00.7]}
4. Bg2 {[%clk 0:03:05.7]} 4... Bg7 {[%clk 0:03:02.6]} 5. O-O {[%clk 0:03:07.3]}
5... e5 {[%clk 0:03:02.4]} 6. Nc3 {[%clk 0:03:08.4]} 6... d6 {[%clk 0:03:02.5]}
7. d3 {[%clk 0:03:09.8]} 7... Nge7 {[%clk 0:03:03.4]} 8. h3 {[%clk 0:03:10.2]}
8... O-O {[%clk 0:03:04.3]} 9. Re1 {[%clk 0:03:10.7]} 9... Rb8 {[%clk
0:03:04.4]} 10. a3 {[%clk 0:03:11.7]} 10... a5 {[%clk 0:03:04.7]} 11. e4 {[%clk
0:03:12.6]} 11... h6 {[%clk 0:03:04.4]} 12. Nd5 {[%clk 0:03:14.1]} 12... f5
{[%clk 0:03:04.2]} 13. b4 {[%clk 0:03:13.3]} 13... axb4 {[%clk 0:03:04.3]} 14.
axb4 {[%clk 0:03:14.5]} 14... Nxd5 {[%clk 0:03:05.5]} 15. cxd5 {[%clk
0:03:14.1]} 15... Nxb4 {[%clk 0:03:06.6]} 16. Ba3 {[%clk 0:03:03.8]} 16... Bd7
{[%clk 0:02:49.5]} 17. Bxb4 {[%clk 0:03:00.4]} 17... cxb4 {[%clk 0:02:38.7]} 18.
Qb3 {[%clk 0:03:00.2]} 18... Qb6 {[%clk 0:02:34.4]} 19. Rab1 {[%clk 0:02:58.6]}
19... Rfc8 {[%clk 0:02:04.4]} 20. Qxb4 {[%clk 0:02:58.6]} 20... Qxb4 {[%clk
0:02:02]} 21. Rxb4 {[%clk 0:02:59.2]} 21... b5 {[%clk 0:01:47.9]} 22. Ra1 {[%clk
0:02:52.6]} 22... Rc3 {[%clk 0:01:42.8]} 23. Bf1 {[%clk 0:02:53.2]} 23... Rbc8
{[%clk 0:01:16.3]} 24. Ra7 {[%clk 0:02:53.1]} 24... R8c7 {[%clk 0:01:16.4]} 25.
Rxc7 {[%clk 0:02:50.4]} 25... Rxc7 {[%clk 0:01:15.9]} 26. h4 {[%clk 0:02:46.9]}
26... Kf7 {[%clk 0:01:02.5]} 27. Nd2 {[%clk 0:02:41.8]} 27... Bf6 {[%clk
0:00:53.1]} 28. Bh3 {[%clk 0:02:42.3]} 28... h5 {[%clk 0:00:51.7]} 29. Kg2
{[%clk 0:02:37.3]} 29... Bd8 {[%clk 0:00:50.9]} 30. f4 {[%clk 0:02:35.3]} 30...
Rc2 {[%clk 0:00:45.4]} 31. Kf3 {[%clk 0:02:36]} 31... Rxd2 {[%clk 0:00:43.8]}
32. Ke3 {[%clk 0:02:35.5]} 32... Rh2 {[%clk 0:00:41.9]} 33. Bf1 {[%clk
0:02:32.8]} 33... Bb6+ {[%clk 0:00:40]} 34. Kf3 {[%clk 0:02:33.9]} 34... Rf2#
{[%clk 0:00:40.6]} 0-1

[Event "*** Titled Tuesday Blitz"]
[Site "Chess.com"]
[Date "2019.05.07"]
[Round "9"]
[White "GelmanAlexander"]
[Black "muran29"]
[Result "1-0"]
[WhiteElo "2582"]
[BlackElo "2455"]
[TimeControl "180+2"]
[EndTime "15:03:48 PDT"]
[Termination "GelmanAlexander won by resignation"]

1. d4 {[%clk 0:03:01.9]} 1... d5 {[%clk 0:02:57.7]} 2. Nc3 {[%clk 0:03:02.9]}
2... Nf6 {[%clk 0:02:56.7]} 3. Bf4 {[%clk 0:03:03.9]} 3... e6 {[%clk 0:02:56.1]}
4. Nb5 {[%clk 0:03:03.2]} 4... Bd6 {[%clk 0:02:55.7]} 5. Nxd6+ {[%clk
0:03:03.5]} 5... cxd6 {[%clk 0:02:56.6]} 6. e3 {[%clk 0:03:03.7]} 6... Nc6
{[%clk 0:02:57.8]} 7. Nf3 {[%clk 0:03:03.8]} 7... O-O {[%clk 0:02:58.1]} 8. Be2
{[%clk 0:03:03.8]} 8... Re8 {[%clk 0:02:59.1]} 9. O-O {[%clk 0:03:04.4]} 9... e5
{[%clk 0:02:59.9]} 10. Bg5 {[%clk 0:03:05.2]} 10... h6 {[%clk 0:03:00.5]} 11.
Bh4 {[%clk 0:03:05.8]} 11... Bg4 {[%clk 0:02:38.7]} 12. h3 {[%clk 0:03:04.3]}
12... Bh5 {[%clk 0:02:39.3]} 13. c3 {[%clk 0:02:59]} 13... Rc8 {[%clk
0:02:39.6]} 14. Re1 {[%clk 0:02:51]} 14... e4 {[%clk 0:02:39.9]} 15. Nd2 {[%clk
0:02:51.1]} 15... Bxe2 {[%clk 0:02:40.9]} 16. Qxe2 {[%clk 0:02:51.9]} 16... Na5
{[%clk 0:02:42.3]} 17. Qb5 {[%clk 0:02:43.8]} 17... Qb6 {[%clk 0:02:37.3]} 18.
Qxb6 {[%clk 0:02:37.6]} 18... axb6 {[%clk 0:02:39.2]} 19. Bxf6 {[%clk
0:02:38.4]} 19... gxf6 {[%clk 0:02:39.8]} 20. Rec1 {[%clk 0:02:23.2]} 20... Nc4
{[%clk 0:02:36.9]} 21. Rc2 {[%clk 0:02:23.4]} 21... b5 {[%clk 0:02:28.7]} 22.
Nf1 {[%clk 0:02:17]} 22... Ra8 {[%clk 0:02:21]} 23. Ng3 {[%clk 0:02:13.6]} 23...
Ra6 {[%clk 0:01:24.7]} 24. Nh5 {[%clk 0:02:10.2]} 24... Rea8 {[%clk 0:01:11.1]}
25. a3 {[%clk 0:02:10.6]} 25... Nb6 {[%clk 0:00:58.6]} 26. Nxf6+ {[%clk
0:02:11]} 26... Kg7 {[%clk 0:00:59.9]} 27. Nh5+ {[%clk 0:02:07.9]} 27... Kg6
{[%clk 0:00:59.1]} 28. Nf4+ {[%clk 0:02:09.5]} 28... Kf5 {[%clk 0:00:59.9]} 29.
g4+ {[%clk 0:02:09]} 29... Kf6 {[%clk 0:01:01]} 30. Kg2 {[%clk 0:02:05.6]} 30...
Kg5 {[%clk 0:01:01.1]} 31. Kg3 {[%clk 0:02:06.3]} 31... f5 {[%clk 0:01:02.1]}
32. Ne6+ {[%clk 0:02:00.5]} 32... Kf6 {[%clk 0:01:02.6]} 33. Nc7 {[%clk
0:02:02]} 1-0